Cogmind - Beta 15 @@@ ROGUE MODE // 2025.09.22 @ 02:22:14 Player: c4-BRK Result: Destroyed by B-75 Beast with Heavy Machine Gun Performance ------------- Evolutions (5) 2500 Regions Visited (4) 800 Robots Destroyed (16) 80 Value Destroyed (783) 783 Prototype IDs (9) 180 Alien Tech Used (0) 0 Bonus (833) 833 TOTAL SCORE: 5176 Bonus ------- High Alert Combat Kills 48 Registered with UFD 300 Met Optimus in HQ 500 Friendly Fire -15 Cogmind --------- Core Integrity 0/1000 Matter 228/300 Energy 100/100 System Corruption 0% Temperature Cool (0) Movement Core (50) Location -5/Factory Parts ------- > --- POWER (2) -------- (None) > --- PROPULSION (4) --- (None) > --- UTILITY (8) ------ Spectral Analyzer > --- WEAPON (3) ------- (None) > --- INVENTORY (5) ---- Cold Fusion Reactor Improved Shield Generator High-powered Shock Rifle Heavy Proton Cannon Compact Ion Cannon Peak State ------------ > --- POWER ------------ Light Ion Engine Cold Fusion Reactor > --- PROPULSION ------- Overtuned Medium Treads Compact Wheel > --- UTILITY ---------- Scrap Suit Medium Storage Unit Spectral Analyzer Hardened Light Armor Plating > --- WEAPON ----------- Improved Heavy Laser Overtuned Beamcaster Mass Driver > --- INVENTORY -------- Advanced Signal Interpreter Improved Shield Generator High-powered Shock Rifle Subdweller Laser Heavy Proton Cannon Subdweller Beam Cannon Subdweller Machine Gun Subdweller Machine Gun Grenade Launcher [Rating: 55] Favorites ----------- Power Light Ion Engine Engine Light Ion Engine Power Core Light Nuclear Core Reactor Cold Fusion Reactor Propulsion Subdweller Monowheel Treads Overtuned Medium Treads Wheel Subdweller Monowheel Utility Medium Storage Unit Device Scrap Suit Storage Medium Storage Unit Processor Spectral Analyzer Protection Hardened Light Armor Plating Weapon Subdweller Machine Gun Energy Gun Subdweller Laser Energy Cannon Beam Cannon Ballistic Gun Subdweller Machine Gun Ballistic Cannon Mass Driver Launcher Grenade Launcher Build | -11 -10 -10 -7 -5 ------- Run | Yrd Mat Sub Scr Fac Slots Evolved 10 | . . . . 10 Power 1 | . . . . 1 Propulsion 2 | . . . . 2 Utility 6 | . . . . 6 Weapon 1 | . . . . 1 Parts Attached 28 | 6 2 6 3 11 Power 4 | 1 . 2 . 1 Engine 2 | 1 . 1 . . Core 1 | . . 1 . . Reactor 1 | . . . . 1 Propulsion 7 | 2 . 1 2 2 Treads 2 | . . . . 2 Leg . | . . . . . Wheel 5 | 2 . 1 2 . Hover . | . . . . . Flight . | . . . . . Utility 6 | 1 2 . 1 2 Device 1 | . . . . 1 Storage 2 | 1 1 . . . Processor 1 | . . . . 1 Hackware . | . . . . . Protection 2 | . 1 . 1 . Artifact . | . . . . . Weapon 11 | 2 . 3 . 6 Energy Gun 5 | 1 . 1 . 3 Energy Cannon 1 | . . 1 . . Ballistic Gun 3 | 1 . 1 . 1 Ballistic Cannon 1 | . . . . 1 Launcher 1 | . . . . 1 Special Weapon . | . . . . . Impact Weapon . | . . . . . Slashing Weapon . | . . . . . Piercing Weapon . | . . . . . Special Melee Weapon . | . . . . . Unidentified Prototypes 2 | . . . . 2 Parts Lost 14 | . . 5 . 9 Power 3 | . . 1 . 2 Propulsion 4 | . . 1 . 3 Utility 1 | . . . . 1 Weapon 6 | . . 3 . 3 Highest Loss Streak 8 | . . 5 . 8 To Critical Strikes . | . . . . . Average Backups 5 | . 1 4 5 6 Power . | . . 1 . . Propulsion . | . . . 1 . Utility . | . . . 1 1 Weapon 3 | . 1 2 3 5 Tool/Special . | . . . . . Unused Backups 9 | . . . 2 7 Power 3 | . . . 2 1 Propulsion . | . . . . . Utility 2 | . . . . 2 Weapon 4 | . . . . 4 Tool/Special . | . . . . . Average Slot Usage (%) 92 | . 94 97 100 51 Engine 10 | . 14 4 14 4 Core 1 | . . 8 . . Wheel 24 | . 28 27 28 5 Storage 12 | . 14 14 14 4 Protection 12 | . 8 14 14 4 Energy Gun 12 | . 14 13 14 6 Ballistic Gun 12 | . 14 12 14 3 Peak Build Rating 55 | 6 7 12 15 55 Average Rating 15 | 3 6 8 13 41 On Entrance 8 | . 6 7 12 15 Naked Turns . | . . . . . Heaviest Build 41 | 12 18 24 28 41 Greatest Support 40 | 32 32 36 40 30 Greatest Overweight (x) 11 | . . 1 8 11 Average Overweight (x) 1 | . . . 1 1 Largest Inventory Capacity 10 | 8 10 10 10 10 Average Capacity 9 | 6 8 10 10 9 Most Carried 10 | 3 3 10 10 10 Average Carried 6 | . 1 5 6 6 Final Capacity 10 | 8 10 10 10 5 Final Carried 10 | . 2 10 10 5 Class Distribution -------------------- 88% | Mutant 7% | Scrapper 3% | Tank Dominant Class ---------------- Mutant | -10/Materials Mutant | -10/Subcaves Mutant | -7/Scraptown Scrapper | -5/Factory Resources | -11 -10 -10 -7 -5 ----------- Run | Yrd Mat Sub Scr Fac Matter Collected 570 | 220 56 122 40 132 Remotely . | . . . . . Salvage Created 709 | . . 333 . 376 Parts 29 | . . 20 . 9 Haulers Intercepted 1 | . . . . 1 Recyclers Shooed . | . . . . . Parts Field Recycled . | . . . . . Retrieved Matter . | . . . . . Parts Self-Destructed 14 | . . 14 . . Prevented . | . . . . . Kills | -11 -10 -10 -7 -5 ------- Run | Yrd Mat Sub Scr Fac Combat Hostiles Destroyed 14 | . . 8 . 6 Guns 11 | . . 7 . 4 Cannons 1 | . . 1 . . AOE 2 | . . . . 2 Classes Destroyed 5 | . . 3 . 2 Tunneler 1 | . . . . 1 Hauler 1 | . . . . 1 Swarmer 1 | . . 1 . . Grunt 8 | . . 2 . 6 Subdweller 5 | . . 5 . . Best Kill Streak 3 | . . 2 . 3 Combat Bots Only 2 | . . 2 . 2 Max Kills in Single Turn 3 | . . 1 . 3 Gunslinging . | . . . . . Exploded 2 | . . . . 2 Melee . | . . . . . Uniques/NPCs Destroyed . | . . . . . Combat | -11 -10 -10 -7 -5 -------- Run | Yrd Mat Sub Scr Fac Hostile Shots Fired 255 | . 4 72 . 179 Missed 88 | . 1 31 . 56 Hits 167 | . 3 41 . 123 Projectile 167 | . 3 41 . 123 AOE 4 | . . . . 4 Critical Strikes 7 | . . 2 . 5 Actively Blocked 1 | . . 1 . . Damage Taken 3312 | . 38 839 . 2435 Core 1235 | . 15 218 . 1002 Absorbed by Shields . | . . . . . Redirected to Shielding 33 | . . 33 . . Regen/Repaired (Parts) 10 | . . . . 10 Core Remaining (%) 53 | 100 . . 6 . Volleys Fired 67 | . 3 34 . 30 Largest 3 | . 2 2 . 3 Hottest 212 | . 70 110 . 212 Shots Fired 126 | . 6 60 . 60 Gun 108 | . 6 51 . 51 Cannon 17 | . . 9 . 8 Launcher 1 | . . . . 1 Special . | . . . . . Kinetic 47 | . 3 23 . 21 Thermal 76 | . 3 37 . 36 Explosive 1 | . . . . 1 Electromagnetic 2 | . . . . 2 Robot Hit Streak 19 | . 2 19 . 8 Robot Miss Streak 3 | . 1 3 . 3 Penetration Max . | . . . . . Secondary Targets 1 | . . 1 . . Max Gunslinging Chain 1 | . . 1 . . Shots Hit Robots 82 | . 3 44 . 35 Core Hits 36 | . . 21 . 15 Critical Kills 1 | . . . . 1 Critical Parts Destroyed . | . . . . . Critical Strikes 2 | . . 1 . 1 Destroy 2 | . . 1 . 1 Melee Attacks . | . . . . . Impact . | . . . . . Slashing . | . . . . . Piercing . | . . . . . Sneak Attacks . | . . . . . Combat Hostiles . | . . . . . Follow-up Attacks . | . . . . . Damage Inflicted 2658 | . 40 722 . 1896 Guns 1427 | . 40 582 . 805 Cannons 352 | . . 140 . 212 Explosions 879 | . . . . 879 Melee . | . . . . . Ramming . | . . . . . Kinetic 629 | . 28 247 . 354 Thermal 1939 | . 12 475 . 1452 Explosive 64 | . . . . 64 Electromagnetic 26 | . . . . 26 Impact . | . . . . . Slashing . | . . . . . Piercing . | . . . . . Highest Corruption . | . . . . . Average Corruption . | . . . . . Corruption Purged . | . . . . . Corruption Blocked . | . . . . . Overload Shots . | . . . . . Overflow Damage 197 | . . . . 197 Projectiles 26 | . . . . 26 Explosions 171 | . . . . 171 Melee . | . . . . . Knockbacks 1 | . . . . 1 Impact . | . . . . . Kinetic 1 | . . . . 1 Secondary . | . . . . . Self-Inflicted Damage . | . . . . . Shots . | . . . . . Rammed . | . . . . . Targets Rammed . | . . . . . Kicked . | . . . . . Crushed . | . . . . . Highest Temperature 504 | . 24 10 . 504 Average Temperature 166 | . 10 5 . 180 Received Heat Transfer 627 | . 6 204 . 417 Effects 10 | . . . . 10 Shutdowns 1 | . . . . 1 Interference 3 | . . . . 3 Short Circuit 1 | . . . . 1 Damage (minor) 1 | . . . . 1 Damage (major) 4 | . . . . 4 Siege Activations . | . . . . . Martial Activations . | . . . . . Shielding Activations . | . . . . . Robots Disrupted . | . . . . . Combat Hostiles . | . . . . . Robots Corrupted . | . . . . . Combat Hostiles . | . . . . . Parts Fried . | . . . . . Impact Corruptions . | . . . . . Robots Melted . | . . . . . Combat Hostiles . | . . . . . Parts Melted 1 | . . 1 . . Heat Transferred 2561 | . 37 965 . 1559 Parts Sabotaged . | . . . . . Parts Stolen . | . . . . . Parts Stripped . | . . . . . Power Chain Reactions . | . . . . . Alert | -11 -10 -10 -7 -5 ------- Run | Yrd Mat Sub Scr Fac Maximum Alert Level 2 | . . . . 2 Low Security (%) 44 | 100 100 . . 19 Level 1 6 | . . . . 9 Level 2 48 | . . . . 70 Level 3 . | . . . . . Level 4 . | . . . . . Level 5 . | . . . . . High Security . | . . . . . Max Security . | . . . . . Peak Influence 476 | . . . . 476 Initial . | . . . . . Average 239 | . . . . 345 Influence Increases 782 | . . 100 . 682 Destroy 0b10 Robot/C 180 | . . 60 . 120 Destroy 0b10 Robot/NC 10 | . . . . 10 Destroy Leader 42 | . . 10 . 32 Disable Machine 255 | . . . . 255 Destroy Structure 100 | . . . . 100 Lose Combat Pursuer 195 | . . 30 . 165 Influence Decreases 376 | . . 100 . 276 Time Decay 286 | . . 100 . 186 Lost Part 90 | . . . . 90 Squads Dispatched 4 | . . . . 4 Investigation 1 | . . . . 1 Extermination . | . . . . . Reinforcement 3 | . . . . 3 Assault . | . . . . . Garrison . | . . . . . Intercept . | . . . . . Searches Triggered . | . . . . . Construction Impeded . | . . . . . Haulers Reinforced 2 | . . . . 2 Active Scanning Responses . | . . . . . Cargo Convoy Interrupts . | . . . . . Stealth | -11 -10 -10 -7 -5 --------- Run | Yrd Mat Sub Scr Fac Distress Signals 1 | . 1 . . . Communications Jammed . | . . . . . Distress Signals . | . . . . . Times Spotted 45 | . 4 14 . 27 Peak Tracking Total 13 | . 4 6 . 13 Tactical Retreats 6 | . . 1 . 5 Traps | -11 -10 -10 -7 -5 ------- Run | Yrd Mat Sub Scr Fac Traps Triggered 2 | . . 2 . . Indirectly . | . . . . . Trap Hack Attempts . | . . . . . Triggered . | . . . . . Disarmed . | . . . . . Reprogrammed . | . . . . . Reused . | . . . . . Traps Extracted . | . . . . . Installed . | . . . . . Triggered . | . . . . . Machines | -11 -10 -10 -7 -5 ---------- Run | Yrd Mat Sub Scr Fac Machines Disabled 18 | . . 1 . 17 Max in Single Turn 17 | . . 1 . 17 Machines Repaired . | . . . . . Machines Dismantled . | . . . . . Machines Sabotaged . | . . . . . Overloaded Fab Kills . | . . . . . Hacking | -11 -10 -10 -7 -5 --------- Run | Yrd Mat Sub Scr Fac Machines Accessed 4 | . . . 3 1 Terminals . | . . . . . Fabricators . | . . . . . Repair Stations . | . . . . . Recycling Units 1 | . . . . 1 Scanalyzers . | . . . . . Garrison Access . | . . . . . Total Hacks 17 | . . . 15 2 Successful 16 | . . . 15 1 Failed 1 | . . . . 1 Catastrophic . | . . . . . Database Lockouts . | . . . . . Manual 2 | . . . . 2 Terminals . | . . . . . Fabricators . | . . . . . Repair Stations . | . . . . . Recycling Units 2 | . . . . 2 Scanalyzers . | . . . . . Garrison Access . | . . . . . Terminal Hacks 15 | . . . 15 . Record 15 | . . . 15 . Fabricator Hacks . | . . . . . Repair Station Hacks . | . . . . . Recycling Unit Hacks . | . . . . . Scanalyzer . | . . . . . Garrison Access Hacks . | . . . . . Unauthorized Hacks 1 | . . . . 1 Terminals . | . . . . . Fabricators . | . . . . . Repair Stations . | . . . . . Recycling Units 1 | . . . . 1 Fedlink 1 | . . . . 1 Scanalyzers . | . . . . . Garrison Access . | . . . . . Data Cores Recovered . | . . . . . Used . | . . . . . Hacking Detections 1 | . . . . 1 Full Trace Events . | . . . . . Feedback Events . | . . . . . Feedback Blocked . | . . . . . Robot Schematics Acquired . | . . . . . Robots Built . | . . . . . Authchips . | . . . . . Time . | . . . . . Total Robot Build Rating . | . . . . . Part Schematics Acquired . | . . . . . Parts Built . | . . . . . Authchips . | . . . . . Time . | . . . . . Total Part Build Rating . | . . . . . Parts Repaired . | . . . . . Time . | . . . . . Parts Recycled . | . . . . . Recycled Matter . | . . . . . Retrieved Matter . | . . . . . Retrieved Components . | . . . . . Parts Scanalyzed . | . . . . . Part Schematics Acquired . | . . . . . Parts Damaged . | . . . . . Bothacking | -11 -10 -10 -7 -5 ------------ Run | Yrd Mat Sub Scr Fac Used RIF Installer . | . . . . . Robots Hacked . | . . . . . Non-combat . | . . . . . Combat . | . . . . . Robot Hacks Applied . | . . . . . Relay Couplers Released . | . . . . . Fabnet Peak Effective % . | . . . . . Robots Rewired . | . . . . . Allies Hacked . | . . . . . Hacks Repelled . | . . . . . Allies | -11 -10 -10 -7 -5 -------- Run | Yrd Mat Sub Scr Fac Total Allies . | . . . . . Largest Group . | . . . . . Highest-Rated Group . | . . . . . Highest-Rated Ally . | . . . . . Total Orders . | . . . . . Ally Attacks . | . . . . . Total Damage . | . . . . . Kills . | . . . . . Allies Corrupted . | . . . . . Allies Melted . | . . . . . Intel | -11 -10 -10 -7 -5 ------- Run | Yrd Mat Sub Scr Fac Active Infowar (turns) 468 | . . . . 468 Optics 468 | . . . . 468 Robot Analysis Total . | . . . . . Derelict Logs Recovered 6 | . . 1 5 . Drone Launches . | . . . . . Drone Recoveries . | . . . . . Exploration | -11 -10 -10 -7 -5 ------------- Run | Yrd Mat Sub Scr Fac Turns Passed 3389 | 56 152 750 1963 468 Spaces Moved 2233 | 35 118 611 1164 305 Core 236 | 5 . . 152 79 Treads 14 | . . . . 14 Legs . | . . . . . Wheels 1983 | 30 118 611 1012 212 Hover . | . . . . . Flight . | . . . . . Fastest Speed 50 | 50 100 100 110 50 Average Speed 132 | 92 100 101 158 112 Slowest Speed 600 | 100 100 115 450 600 Overloaded Moves . | . . . . . Propulsion Burnouts . | . . . . . Robots Hopped . | . . . . . Potential Cave-ins . | . . . . . Cave-ins Triggered . | . . . . . Exploration Rate (%) 30 | 4 31 38 66 11 Regions Visited 4 Branch Regions 2 Pre-discovered Areas 2 | . . 1 1 . Known Exits Taken . | . . . . . Unknown Exits Taken 4 | 1 1 1 1 . Scrap Searched 7 | . . 3 4 . Spaces Dug . | . . . . . Terrain Destroyed 48 | . . . . 48 Melee . | . . . . . Projectile 11 | . . . . 11 AOE 37 | . . . . 37 Terrain Rammed . | . . . . . Walls Destroyed . | . . . . . Machines Disabled . | . . . . . Actions | -11 -10 -10 -7 -5 --------- Run | Yrd Mat Sub Scr Fac Total 2566 | 58 145 679 1287 397 Wait 184 | 12 18 17 106 31 Move 2229 | 34 117 610 1163 305 Hop . | . . . . . Pick Up 39 | 6 4 12 7 10 Fast Attach 1 | . . . . 1 Attach 18 | 6 1 5 . 6 Detach . | . . . . . Swap 12 | . 1 1 5 5 Drop 16 | . 1 . 6 9 Fire 67 | . 3 34 . 30 Melee . | . . . . . Ram . | . . . . . Kick . | . . . . . Crush . | . . . . . Escape Stasis . | . . . . . Rewire . | . . . . . Trap . | . . . . . Miscellaneous . | . . . . . Route ------- -11/Scrapyard -10/Materials (discovered 2 exits: [*Mat] / [*Sub]) -10/Subcaves (discovered 3 exits: [*Mat] / [*Rec] / *Scr) -7/Scraptown -5/Factory History --------- Turn | Location | Event 38 | -11/Scrapyard | Discovered new exit (range 16) 57 | -11/Scrapyard | Entered Materials 58 | -10/Materials | Met a group of wandering Federalists 194 | -10/Materials | Discovered new exit (range 15) 200 | -10/Materials | Discovered new exit (range 9) 209 | -10/Materials | Entered Subcaves 210 | -10/Subcaves | Continued accompanying wandering Federalists (4) 210 | -10/Subcaves | Approached by a straggling Scientist 213 | -10/Subcaves | Scientist uncovered a shortcut to Scraptown 223 | -10/Subcaves | Discovered new exit (range 11) 301 | -10/Subcaves | Build established: Mutant 740 | -10/Subcaves | Shifting Twisted Machinery released Spk. Treads 748 | -10/Subcaves | Shifting Twisted Machinery released Flamer 752 | -10/Subcaves | Discovered new exit (range 15) 783 | -10/Subcaves | Core integrity fell below 50% 795 | -10/Subcaves | Core integrity fell below 20% 827 | -10/Subcaves | Lost 5 parts (1p1n3w) 834 | -10/Subcaves | Ambushed by Subdwellers from Twisted Machinery 959 | -10/Subcaves | Entered Scraptown 999 | -7/Scraptown | Heard Great Nut preacher, LISTEN AND RECITE! 1149 | -7/Scraptown | Scanned Subdweller tech in exchange for log data 1151 | -7/Scraptown | Learned location of Testing (-3) 1153 | -7/Scraptown | Learned Factory security intel 1154 | -7/Scraptown | Learned Research emergency access door positions 1155 | -7/Scraptown | Learned Research stockpile data 1181 | -7/Scraptown | Visited Bundlers 1250 | -7/Scraptown | Visited Red Mages 1282 | -7/Scraptown | Visited IN-MT5's Study 1322 | -7/Scraptown | Visited Assassins FH 1373 | -7/Scraptown | Visited Cyclists 1383 | -7/Scraptown | Visited Fellowship of the Rings 1442 | -7/Scraptown | Visited Spacefarers 1640 | -7/Scraptown | Visited UFD Registry 1640 | -7/Scraptown | Registered with UFD as "Quantumdome" 1726 | -7/Scraptown | Entered Cyclist Reading Room 1983 | -7/Scraptown | Visited Scrapoid Pod Storage 2191 | -7/Scraptown | Visited Modified Component R&D 2236 | -7/Scraptown | Visited Research Penetration Think Tank 2256 | -7/Scraptown | Visited Abandonware Association 2277 | -7/Scraptown | Learned abandonware demo "MELTYB.EXE" 2311 | -7/Scraptown | Visited Scrap Suit Storage 2325 | -7/Scraptown | Visited Observation Area 2348 | -7/Scraptown | Visited Curators Association 2381 | -7/Scraptown | Visited Scrapoid Research Area 2446 | -7/Scraptown | Delivered Scrap Shield to a Scientist 2555 | -7/Scraptown | Found Scrap Suit 2598 | -7/Scraptown | Visited Infowarlord's Domain 2605 | -7/Scraptown | Found Spectral Analyzer 2857 | -7/Scraptown | Met Optimus 2857 | -7/Scraptown | Accepted into 0bPrime 2916 | -7/Scraptown | Discovered new exit (range 5) 2922 | -7/Scraptown | Entered Factory 2922 | -5/Factory | Evolved 10 slots: Power x1, Propulsion x2, Utility x6, Weapon x1 3203 | -5/Factory | Loaded intel: 8 recycling unit locations 3226 | -5/Factory | Spotted B-75 Beast 3346 | -5/Factory | Core integrity fell below 50% 3362 | -5/Factory | Lost 8 parts (2p2n1u3w) 3374 | -5/Factory | Core integrity fell below 20% 3390 | -5/Factory | Destroyed by B-75 Beast with Heavy Machine Gun Last Messages --------------- Slug penetrates Wall. Dropped Cold Fusion Reactor. Discarded Scrap Suit. Penetrated by Slug. ALERT: Security rotation in progress. Slug penetrates Wall. Penetrated by Slug. Acquired 5 matter. ALERT: Cargo convoy en route, clear transfer corridor. Acquired Imp. Medium Treads. Penetrated by Slug. Nuclear Reactor explodes. Imp. Medium Treads destroyed. Penetrated by Slug. The unstable cave ceiling collapses. Slug penetrates Wall. Penetrated by Slug. The unstable cave ceiling collapses. Penetrated by Slug. Map ----- +----------------------------------------------------+ | ?????????????????????????????????????????????????? | | ?????????????????????????????????????????????????? | | ?????????????????????????????????????????????????? | | ?????????????????????????????????????????????????? | | ?????????????????????????????????????????????????? | | ?????????????????????????????????????????????????? | | ?????????????????????????????????????##??????????? | | ????????????????????????????????????? ??????????? | | ?????????????????????????????????????# ??????????? | | ?????????????????????????????????????# ??????????? | | ?????????????????????????????????????# ??????????? | | ?????????????????????????????????????# ########### | | ?????????????????????????????????????# | | ?????????????????????????????????????# | | ?????????????????????????????????????# | | ?????????????????????????????????????# | | ??????????????????????????????????#### | | ??????????????????????????????????# # | | ???????????????????????###+######## ; | | ???????????????????????# | == | | ???????????????????????# = | | ???????????????????#???; | | ??????????##########/### | | ??????????# ? ; % | | ??????????# ?# #####"# | | ??????????#! ?# @ # | | ??????????# = # ""#""" | | ??????????# # "#"R | | ??????????# + ""#""" " | | ??????????# = # BB # " | | ??????????# # BB # " | | ??????????# ?###+####;;####; # | | ??????????# ??# g ! # # """ " | | ??????????# ???# """ """ # # """ " | | ??????????# ???# "R """ + % # """ " | | ??????????##########????# """ """ ! ; # % | | ????????????????????????# # # | | ????????????????????????#+######## # # % ######" | | ????????????????????????# #????# ######### | | ????????????????????????# #???## """T""" # | | ????????????????????????# #???# """ """ # | | ????????????????????????# #???# # | | ????????????????????????# #???# # | | ????????????????????????# ###### # | | ????????????????????????# # | | ????????????????????????####### # | | ?????????????????????????????# # | | ?????????????????????????????# # | | ?????????????????????????????## # ### | | ??????????????????????????????### # #?? | +----------------------------------------------------+ Best States ------------- Heat Dissipation 40 Energy Generation 22 Energy Capacity 225 Matter Stores 300 Matter Capacity 300 Sight Range 24 Terrain Scan Density 10 Armor Coverage 150 Propulsion Shielding 33 Evasion (%) 50 Recoil Reduction 1 Item Schematics ----------------- None Robot Schematics ------------------ None Fabricated ------------ Nothing Repaired ---------- Nothing Alien Tech Used ----------------- None Achievements -------------- Dramatic Entrance It Was An Accident, I Swear Challenges ------------ None Game ------ Seed GreatDataDeflector Manual? 0 Play Time 00:29:04 Cumulative 28.9 hours Start 2025.09.22 @ 01:52:35 End 2025.09.22 @ 02:22:14 Sessions 1 Manual Loads 0 Difficulty Rogue Special Mode None Game No. 51 Rogue 30 Adventurer 21 Explorer 0 Win Type - Total 1 Types 0/0/0/0/0/0/0/1/0/0 Lore% 52 Gallery% 33 Achievement% 39 Wizard Run 0 Options --------- Layout 1 ASCII 0 Keyboard 0 Movement Mouse Keybinds 0 Fullscreen 2 Font 24/Smallcaps Map View 50x35 Zoom Use 0% Tactical HUD 0 Map Filters NONE Filters NONE Steam 1 RUN: f9cfdcd3-78f6-4d66-a1d1-b66fc805aff2